[Event "Titled Tuesday Blitz October 18 Late 2022"]
[White "Al-Tarboush, Ward"]
[Black "Gabrielian, Artur"]
[WhiteFideId "7601450"]
[BlackFideId "4131002"]
[WhiteElo "2269"]
[BlackElo "2432"]
[Result "1-0"]
[Round "06"]
[TimeControl "180+1"]
[Date "2022.10.18"]
[WhiteClock "0:01:30"]
[BlackClock "0:00:05"]

1. d4 {[%clk 0:03:00]}  Nf6 {[%clk 0:02:59]} 2. Nc3 {[%clk 0:03:00]}  d5 {[%clk 0:02:59]} 3. Bg5 {[%clk 0:03:00]}  Nbd7 {[%clk 0:02:58]} 4. Nf3 {[%clk 0:02:56]}  h6 {[%clk 0:02:57]} 5. Bh4 {[%clk 0:02:56]}  e6 {[%clk 0:02:57]} 6. e3 {[%clk 0:02:55]}  Be7 {[%clk 0:02:57]} 7. Bd3 {[%clk 0:02:55]}  c5 {[%clk 0:02:54]} 8. O-O {[%clk 0:02:55]}  c4 {[%clk 0:02:54]} 9. Be2 {[%clk 0:02:55]}  a6 {[%clk 0:02:53]} 10. Ne5 {[%clk 0:02:46]}  Nxe5 {[%clk 0:02:52]} 11. dxe5 {[%clk 0:02:47]}  Nd7 {[%clk 0:02:51]} 12. Bxe7 {[%clk 0:02:47]}  Qxe7 {[%clk 0:02:52]} 13. Qd4 {[%clk 0:02:48]}  Qc5 {[%clk 0:02:50]} 14. f4 {[%clk 0:02:48]}  b5 {[%clk 0:02:48]} 15. f5 {[%clk 0:02:47]}  Qxd4 {[%clk 0:02:41]} 16. exd4 {[%clk 0:02:46]}  Ke7 {[%clk 0:02:29]} 17. fxe6 {[%clk 0:02:43]}  fxe6 {[%clk 0:02:28]} 18. Bh5 {[%clk 0:02:44]}  Rf8 {[%clk 0:02:24]} 19. Ne2 {[%clk 0:02:42]}  Rxf1+ {[%clk 0:01:13]} 20. Rxf1 {[%clk 0:02:41]}  g5 {[%clk 0:01:08]} 21. Rf7+ {[%clk 0:02:39]}  Kd8 {[%clk 0:01:08]} 22. Rh7 {[%clk 0:02:39]}  b4 {[%clk 0:01:05]} 23. Rxh6 {[%clk 0:02:36]}  a5 {[%clk 0:01:04]} 24. Rxe6 {[%clk 0:02:34]}  Ra6 {[%clk 0:01:04]} 25. Rxa6 {[%clk 0:02:32]}  Bxa6 {[%clk 0:01:05]} 26. Bf7 {[%clk 0:02:29]}  Nb6 {[%clk 0:01:04]} 27. g3 {[%clk 0:02:25]}  Ke7 {[%clk 0:01:04]} 28. Bg6 {[%clk 0:02:23]}  Na4 {[%clk 0:01:03]} 29. b3 {[%clk 0:02:12]}  Nb2 {[%clk 0:00:49]} 30. Kf2 {[%clk 0:02:08]}  a4 {[%clk 0:00:49]} 31. h4 {[%clk 0:02:04]}  gxh4 {[%clk 0:00:43]} 32. gxh4 {[%clk 0:02:05]}  cxb3 {[%clk 0:00:14]} 33. cxb3 {[%clk 0:02:05]}  a3 {[%clk 0:00:14]} 34. Ke1 {[%clk 0:01:35]}  Nd3+ {[%clk 0:00:09]} 35. Bxd3 {[%clk 0:01:33]}  Bxd3 {[%clk 0:00:09]} 36. Nf4 {[%clk 0:01:31]}  Be4 {[%clk 0:00:07]} 37. Kd2 {[%clk 0:01:30]}  Kf7 {[%clk 0:00:05]} 38. Nd3 {[%clk 0:01:30]} 1-0


[Site "https://www.chess.com"]

[Event "Titled Tuesday Blitz October 18 Late 2022"]
[White "Alexikov, Alexander"]
[Black "Floresvillar Gonzalez, Luis Migu"]
[WhiteFideId "14103958"]
[BlackFideId "5100542"]
[WhiteElo "2222"]
[BlackElo "2040"]
[Result "1-0"]
[Round "06"]
[TimeControl "180+1"]
[Date "2022.10.19"]
[WhiteClock "0:01:48"]
[BlackClock "0:00:11"]

1. e4 {[%clk 0:03:00]}  e6 {[%clk 0:03:00]} 2. d4 {[%clk 0:02:59]}  d5 {[%clk 0:03:00]} 3. Nc3 {[%clk 0:03:00]}  dxe4 {[%clk 0:02:57]} 4. Nxe4 {[%clk 0:02:58]}  Nd7 {[%clk 0:02:57]} 5. Nf3 {[%clk 0:02:58]}  Ngf6 {[%clk 0:02:58]} 6. Nxf6+ {[%clk 0:02:58]}  Nxf6 {[%clk 0:02:57]} 7. Ne5 {[%clk 0:02:57]}  c5 {[%clk 0:02:53]} 8. Bb5+ {[%clk 0:02:53]}  Bd7 {[%clk 0:02:52]} 9. Bxd7+ {[%clk 0:02:50]}  Nxd7 {[%clk 0:02:51]} 10. Bf4 {[%clk 0:02:46]}  cxd4 {[%clk 0:02:42]} 11. Qxd4 {[%clk 0:02:45]}  Nxe5 {[%clk 0:02:40]} 12. Qxe5 {[%clk 0:02:39]}  Qd5 {[%clk 0:02:18]} 13. Qxd5 {[%clk 0:02:35]}  exd5 {[%clk 0:02:18]} 14. O-O-O {[%clk 0:02:35]}  O-O-O {[%clk 0:02:18]} 15. Rd3 {[%clk 0:02:32]}  Bc5 {[%clk 0:02:09]} 16. Rc3 {[%clk 0:02:30]}  b6 {[%clk 0:02:01]} 17. b4 {[%clk 0:02:28]}  d4 {[%clk 0:01:41]} 18. Rc4 {[%clk 0:02:27]}  Rd5 {[%clk 0:01:42]} 19. bxc5 {[%clk 0:02:17]}  bxc5 {[%clk 0:01:41]} 20. Rd1 {[%clk 0:02:15]}  Rhd8 {[%clk 0:01:39]} 21. c3 {[%clk 0:02:13]}  dxc3 {[%clk 0:01:31]} 22. Rxd5 {[%clk 0:02:12]}  Rxd5 {[%clk 0:01:31]} 23. Be3 {[%clk 0:02:09]}  Kb7 {[%clk 0:01:15]} 24. Rxc5 {[%clk 0:02:07]}  Rd6 {[%clk 0:00:52]} 25. Rxc3 {[%clk 0:02:03]}  Rg6 {[%clk 0:00:53]} 26. g3 {[%clk 0:02:02]}  h5 {[%clk 0:00:49]} 27. h3 {[%clk 0:02:01]}  Ra6 {[%clk 0:00:42]} 28. a3 {[%clk 0:01:59]}  g6 {[%clk 0:00:39]} 29. h4 {[%clk 0:01:57]}  Re6 {[%clk 0:00:36]} 30. Kc2 {[%clk 0:01:57]}  a6 {[%clk 0:00:35]} 31. Rc4 {[%clk 0:01:57]}  f5 {[%clk 0:00:28]} 32. a4 {[%clk 0:01:55]}  Re7 {[%clk 0:00:17]} 33. Rb4+ {[%clk 0:01:54]}  Kc7 {[%clk 0:00:16]} 34. a5 {[%clk 0:01:51]}  Re6 {[%clk 0:00:14]} 35. Rb6 {[%clk 0:01:50]}  Rxb6 {[%clk 0:00:12]} 36. axb6+ {[%clk 0:01:49]}  Kc6 {[%clk 0:00:11]} 37. Kc3 {[%clk 0:01:49]}  a5 {[%clk 0:00:11]} 38. Kc4 {[%clk 0:01:48]} 1-0


[Site "https://www.chess.com"]

[Event "Titled Tuesday Blitz October 18 Late 2022"]
[White "Bach, Matthias"]
[Black "Poliakova, Varvara"]
[WhiteFideId "4603168"]
[BlackFideId "13518313"]
[WhiteElo "2165"]
[BlackElo "1938"]
[Result "0-1"]
[Round "06"]
[TimeControl "180+1"]
[Date "2022.10.19"]
[WhiteClock "0:00:27"]
[BlackClock "0:00:40"]

1. d4 {[%clk 0:02:56]}  f5 {[%clk 0:02:58]} 2. e4 {[%clk 0:02:54]}  fxe4 {[%clk 0:02:57]} 3. Nc3 {[%clk 0:02:55]}  Nf6 {[%clk 0:02:55]} 4. f3 {[%clk 0:02:55]}  g6 {[%clk 0:02:56]} 5. fxe4 {[%clk 0:02:53]}  d6 {[%clk 0:02:50]} 6. Bc4 {[%clk 0:02:50]}  e6 {[%clk 0:02:47]} 7. Bg5 {[%clk 0:02:46]}  h6 {[%clk 0:02:44]} 8. Bh4 {[%clk 0:02:44]}  g5 {[%clk 0:02:42]} 9. Bg3 {[%clk 0:02:43]}  Bg7 {[%clk 0:02:39]} 10. Nf3 {[%clk 0:02:30]}  Nc6 {[%clk 0:02:36]} 11. O-O {[%clk 0:02:27]}  O-O {[%clk 0:02:32]} 12. d5 {[%clk 0:02:25]}  Na5 {[%clk 0:02:31]} 13. Bd3 {[%clk 0:02:24]}  Nh5 {[%clk 0:02:18]} 14. Qd2 {[%clk 0:02:09]}  Nxg3 {[%clk 0:02:13]} 15. hxg3 {[%clk 0:02:09]}  b6 {[%clk 0:02:11]} 16. Nh2 {[%clk 0:01:39]}  Rxf1+ {[%clk 0:01:59]} 17. Rxf1 {[%clk 0:01:38]}  Nb7 {[%clk 0:01:52]} 18. Qe2 {[%clk 0:01:16]}  Nc5 {[%clk 0:01:46]} 19. Ng4 {[%clk 0:01:15]}  Nxd3 {[%clk 0:01:31]} 20. cxd3 {[%clk 0:01:14]}  Qe7 {[%clk 0:01:25]} 21. e5 {[%clk 0:00:50]}  dxe5 {[%clk 0:01:11]} 22. Qe4 {[%clk 0:00:48]}  Bd7 {[%clk 0:01:03]} 23. Qg6 {[%clk 0:00:45]}  Rf8 {[%clk 0:00:57]} 24. Nxh6+ {[%clk 0:00:38]}  Kh8 {[%clk 0:00:56]} 25. Nf7+ {[%clk 0:00:35]}  Kg8 {[%clk 0:00:53]} 26. Nh6+ {[%clk 0:00:29]}  Kh8 {[%clk 0:00:53]} 27. Rxf8+ {[%clk 0:00:30]}  Qxf8 {[%clk 0:00:51]} 28. Nf7+ {[%clk 0:00:28]}  Kg8 {[%clk 0:00:50]} 29. Nxg5 {[%clk 0:00:28]}  Qf5 {[%clk 0:00:43]} 30. Qh7+ {[%clk 0:00:27]}  Qxh7 {[%clk 0:00:40]} 0-1


[Site "https://www.chess.com"]

[Event "Titled Tuesday Blitz October 18 Late 2022"]
[White "Bjelobrk, Igor"]
[Black "Girsh, Daniel"]
[WhiteFideId "4300726"]
[BlackFideId "30949190"]
[WhiteElo "2335"]
[BlackElo "2075"]
[Result "1-0"]
[Round "06"]
[TimeControl "180+1"]
[Date "2022.10.19"]
[WhiteClock "0:01:01"]
[BlackClock "0:00:36"]

1. Nf3 {[%clk 0:03:00]}  d5 {[%clk 0:02:59]} 2. c4 {[%clk 0:02:58]}  e6 {[%clk 0:02:59]} 3. g3 {[%clk 0:02:56]}  Nf6 {[%clk 0:02:58]} 4. Bg2 {[%clk 0:02:56]}  Be7 {[%clk 0:02:58]} 5. O-O {[%clk 0:02:55]}  O-O {[%clk 0:02:59]} 6. d4 {[%clk 0:02:54]}  dxc4 {[%clk 0:02:59]} 7. Qc2 {[%clk 0:02:53]}  b5 {[%clk 0:02:59]} 8. a4 {[%clk 0:02:48]}  b4 {[%clk 0:02:58]} 9. Nfd2 {[%clk 0:02:28]}  Nd5 {[%clk 0:02:58]} 10. Nxc4 {[%clk 0:02:25]}  c5 {[%clk 0:02:58]} 11. dxc5 {[%clk 0:02:22]}  Bxc5 {[%clk 0:02:59]} 12. e4 {[%clk 0:02:19]}  Nb6 {[%clk 0:02:58]} 13. Ncd2 {[%clk 0:02:15]}  Qc7 {[%clk 0:02:43]} 14. Nb3 {[%clk 0:02:09]}  Bd6 {[%clk 0:02:37]} 15. Qxc7 {[%clk 0:02:06]}  Bxc7 {[%clk 0:02:37]} 16. a5 {[%clk 0:02:05]}  Ba6 {[%clk 0:02:07]} 17. axb6 {[%clk 0:01:56]}  Bxb6 {[%clk 0:01:57]} 18. e5 {[%clk 0:01:42]}  Bxf1 {[%clk 0:01:56]} 19. Kxf1 {[%clk 0:01:43]}  Nd7 {[%clk 0:01:54]} 20. Bxa8 {[%clk 0:01:42]}  Rxa8 {[%clk 0:01:54]} 21. f4 {[%clk 0:01:42]}  Rc8 {[%clk 0:01:51]} 22. Ke2 {[%clk 0:01:42]}  Rc2+ {[%clk 0:01:49]} 23. N1d2 {[%clk 0:01:37]}  f6 {[%clk 0:01:45]} 24. exf6 {[%clk 0:01:32]}  Nxf6 {[%clk 0:01:45]} 25. Kd3 {[%clk 0:01:32]}  Rc8 {[%clk 0:01:45]} 26. Nc4 {[%clk 0:01:32]}  Bg1 {[%clk 0:01:39]} 27. h3 {[%clk 0:01:23]}  Rd8+ {[%clk 0:01:25]} 28. Ke2 {[%clk 0:01:21]}  Nh5 {[%clk 0:01:17]} 29. Be3 {[%clk 0:01:14]}  Nxg3+ {[%clk 0:01:15]} 30. Kf3 {[%clk 0:01:13]}  Bxe3 {[%clk 0:01:14]} 31. Nxe3 {[%clk 0:01:13]}  Rd3 {[%clk 0:01:13]} 32. Nc5 {[%clk 0:01:14]}  Rd2 {[%clk 0:00:57]} 33. Kxg3 {[%clk 0:01:13]}  Rxb2 {[%clk 0:00:58]} 34. Rxa7 {[%clk 0:01:12]}  h6 {[%clk 0:00:57]} 35. Nxe6 {[%clk 0:01:11]}  b3 {[%clk 0:00:58]} 36. Rxg7+ {[%clk 0:01:11]}  Kh8 {[%clk 0:00:59]} 37. Rb7 {[%clk 0:01:11]}  Rb1 {[%clk 0:00:55]} 38. Kf3 {[%clk 0:01:08]}  b2 {[%clk 0:00:54]} 39. f5 {[%clk 0:01:07]}  h5 {[%clk 0:00:35]} 40. f6 {[%clk 0:01:04]}  h4 {[%clk 0:00:35]} 41. f7 {[%clk 0:01:03]}  Kh7 {[%clk 0:00:35]} 42. f8=Q+ {[%clk 0:01:03]}  Kg6 {[%clk 0:00:35]} 43. Qf5+ {[%clk 0:01:02]}  Kh6 {[%clk 0:00:36]} 44. Rh7# {[%clk 0:01:01]} 1-0


[Site "https://www.chess.com"]

[Event "Titled Tuesday Blitz October 18 Late 2022"]
[White "Chan, Kim Yew"]
[Black "Erece, Ece Alkim"]
[WhiteFideId "5717981"]
[BlackFideId "6346006"]
[WhiteElo "2206"]
[BlackElo "1667"]
[Result "1-0"]
[Round "06"]
[TimeControl "180+1"]
[Date "2022.10.19"]
[WhiteClock "0:00:15"]
[BlackClock "0:00:10"]

1. Nf3 {[%clk 0:03:00]}  Nf6 {[%clk 0:02:59]} 2. c4 {[%clk 0:02:58]}  g6 {[%clk 0:02:59]} 3. g3 {[%clk 0:02:58]}  Bg7 {[%clk 0:02:59]} 4. Bg2 {[%clk 0:02:59]}  O-O {[%clk 0:02:59]} 5. O-O {[%clk 0:03:00]}  d6 {[%clk 0:03:00]} 6. d4 {[%clk 0:02:57]}  Nbd7 {[%clk 0:03:00]} 7. Nc3 {[%clk 0:02:57]}  e5 {[%clk 0:03:00]} 8. e4 {[%clk 0:02:57]}  exd4 {[%clk 0:03:00]} 9. Nxd4 {[%clk 0:02:58]}  Re8 {[%clk 0:03:00]} 10. h3 {[%clk 0:02:57]}  Nc5 {[%clk 0:03:01]} 11. Re1 {[%clk 0:02:56]}  a5 {[%clk 0:03:00]} 12. Qc2 {[%clk 0:02:48]}  Bd7 {[%clk 0:03:00]} 13. Be3 {[%clk 0:02:48]}  Qc8 {[%clk 0:03:00]} 14. Kh2 {[%clk 0:02:47]}  Re5 {[%clk 0:03:00]} 15. Nd5 {[%clk 0:01:36]}  Nxd5 {[%clk 0:02:46]} 16. cxd5 {[%clk 0:01:29]}  Bxh3 {[%clk 0:02:44]} 17. Bxh3 {[%clk 0:00:38]}  Rh5 {[%clk 0:02:43]} 18. Nf5 {[%clk 0:00:39]}  gxf5 {[%clk 0:02:37]} 19. exf5 {[%clk 0:00:20]}  Nd7 {[%clk 0:02:15]} 20. Kg2 {[%clk 0:00:20]}  Ne5 {[%clk 0:02:09]} 21. Rad1 {[%clk 0:00:19]}  Qf8 {[%clk 0:01:46]} 22. f4 {[%clk 0:00:18]}  Nd7 {[%clk 0:01:25]} 23. Bg4 {[%clk 0:00:14]}  Rh6 {[%clk 0:01:22]} 24. Rh1 {[%clk 0:00:14]}  Nf6 {[%clk 0:01:16]} 25. Bf3 {[%clk 0:00:14]}  Re8 {[%clk 0:01:02]} 26. Rxh6 {[%clk 0:00:13]}  Rxe3 {[%clk 0:00:53]} 27. Rhh1 {[%clk 0:00:12]}  Qe7 {[%clk 0:00:44]} 28. Qd2 {[%clk 0:00:11]}  Nd7 {[%clk 0:00:20]} 29. Rhe1 {[%clk 0:00:11]}  Rxe1 {[%clk 0:00:19]} 30. Rxe1 {[%clk 0:00:12]}  Qf6 {[%clk 0:00:19]} 31. Re8+ {[%clk 0:00:08]}  Nf8 {[%clk 0:00:17]} 32. Be4 {[%clk 0:00:06]}  a4 {[%clk 0:00:16]} 33. Rb8 {[%clk 0:00:04]}  Qxb2 {[%clk 0:00:14]} 34. Qxb2 {[%clk 0:00:04]}  Bxb2 {[%clk 0:00:14]} 35. Rxb7 {[%clk 0:00:05]}  a3 {[%clk 0:00:15]} 36. Rxc7 {[%clk 0:00:05]}  Kg7 {[%clk 0:00:15]} 37. Kf3 {[%clk 0:00:04]}  Kf6 {[%clk 0:00:16]} 38. Rc6 {[%clk 0:00:03]}  Ke7 {[%clk 0:00:16]} 39. f6+ {[%clk 0:00:03]}  Kd7 {[%clk 0:00:15]} 40. Ra6 {[%clk 0:00:03]}  Bc1 {[%clk 0:00:15]} 41. Ra7+ {[%clk 0:00:03]}  Ke8 {[%clk 0:00:14]} 42. Bf5 {[%clk 0:00:03]}  Ne6 {[%clk 0:00:09]} 43. dxe6 {[%clk 0:00:02]}  fxe6 {[%clk 0:00:10]} 44. Bxe6 {[%clk 0:00:03]}  Kd8 {[%clk 0:00:09]} 45. Ra8+ {[%clk 0:00:04]}  Kc7 {[%clk 0:00:09]} 46. f7 {[%clk 0:00:04]}  Bb2 {[%clk 0:00:08]} 47. f8=Q {[%clk 0:00:05]}  Kc6 {[%clk 0:00:08]} 48. Qc8+ {[%clk 0:00:06]}  Kb5 {[%clk 0:00:09]} 49. Ra4 {[%clk 0:00:07]}  Kxa4 {[%clk 0:00:09]} 50. Qc4+ {[%clk 0:00:07]}  Ka5 {[%clk 0:00:08]} 51. Qc6 {[%clk 0:00:07]}  Kb4 {[%clk 0:00:08]} 52. Bc4 {[%clk 0:00:08]}  Kc3 {[%clk 0:00:09]} 53. Bb3+ {[%clk 0:00:08]}  Kd2 {[%clk 0:00:10]} 54. Qc2+ {[%clk 0:00:09]}  Ke1 {[%clk 0:00:10]} 55. Ke4 {[%clk 0:00:10]}  Kf1 {[%clk 0:00:09]} 56. Kd5 {[%clk 0:00:10]}  Kg1 {[%clk 0:00:09]} 57. Kxd6 {[%clk 0:00:11]}  Kh1 {[%clk 0:00:09]} 58. f5 {[%clk 0:00:12]}  h5 {[%clk 0:00:09]} 59. Ke6 {[%clk 0:00:12]}  h4 {[%clk 0:00:10]} 60. gxh4 {[%clk 0:00:13]}  Kg1 {[%clk 0:00:10]} 61. Kd5 {[%clk 0:00:13]}  Kf1 {[%clk 0:00:10]} 62. Ke4 {[%clk 0:00:14]}  Kg1 {[%clk 0:00:10]} 63. Kf3 {[%clk 0:00:15]}  Bd4 {[%clk 0:00:10]} 64. Qg2# {[%clk 0:00:15]} 1-0


[Site "https://www.chess.com"]

[Event "Titled Tuesday Blitz October 18 Late 2022"]
[White "Cruz, William Ferreira Da"]
[Black "Goryachkina, Aleksandra"]
[WhiteFideId "2118050"]
[BlackFideId "4147103"]
[WhiteElo "2223"]
[BlackElo "2484"]
[Result "1/2-1/2"]
[Round "06"]
[TimeControl "180+1"]
[Date "2022.10.19"]
[WhiteClock "0:00:08"]
[BlackClock "0:00:04"]

1. d4 {[%clk 0:02:55]}  Nf6 {[%clk 0:02:58]} 2. c4 {[%clk 0:02:55]}  e6 {[%clk 0:02:59]} 3. Nc3 {[%clk 0:02:53]}  Bb4 {[%clk 0:02:59]} 4. Nf3 {[%clk 0:02:53]}  d5 {[%clk 0:02:58]} 5. cxd5 {[%clk 0:02:49]}  exd5 {[%clk 0:02:58]} 6. Bg5 {[%clk 0:02:49]}  h6 {[%clk 0:02:53]} 7. Bxf6 {[%clk 0:02:46]}  Qxf6 {[%clk 0:02:53]} 8. Qb3 {[%clk 0:02:47]}  Qb6 {[%clk 0:02:46]} 9. a3 {[%clk 0:02:42]}  Bxc3+ {[%clk 0:02:36]} 10. Qxc3 {[%clk 0:02:42]}  O-O {[%clk 0:02:34]} 11. e3 {[%clk 0:02:38]}  Bf5 {[%clk 0:02:32]} 12. Be2 {[%clk 0:02:34]}  a5 {[%clk 0:02:22]} 13. b3 {[%clk 0:02:24]}  Nd7 {[%clk 0:02:19]} 14. O-O {[%clk 0:02:17]}  c6 {[%clk 0:02:13]} 15. b4 {[%clk 0:02:07]}  Rfe8 {[%clk 0:02:11]} 16. h3 {[%clk 0:02:05]}  Re6 {[%clk 0:01:59]} 17. Kh1 {[%clk 0:01:21]}  Nf6 {[%clk 0:01:38]} 18. Bd3 {[%clk 0:01:14]}  Ne4 {[%clk 0:01:30]} 19. Bxe4 {[%clk 0:01:12]}  Bxe4 {[%clk 0:01:28]} 20. Nd2 {[%clk 0:01:11]}  axb4 {[%clk 0:01:20]} 21. axb4 {[%clk 0:01:02]}  Rae8 {[%clk 0:01:20]} 22. Nxe4 {[%clk 0:01:01]}  Rxe4 {[%clk 0:01:19]} 23. Qc5 {[%clk 0:00:57]}  Qc7 {[%clk 0:00:59]} 24. b5 {[%clk 0:00:54]}  Qd7 {[%clk 0:00:58]} 25. bxc6 {[%clk 0:00:51]}  bxc6 {[%clk 0:00:58]} 26. Ra7 {[%clk 0:00:48]}  Qf5 {[%clk 0:00:54]} 27. Qxc6 {[%clk 0:00:33]}  Rxe3 {[%clk 0:00:52]} 28. Ra8 {[%clk 0:00:29]}  Qe6 {[%clk 0:00:35]} 29. Rxe8+ {[%clk 0:00:23]}  Qxe8 {[%clk 0:00:36]} 30. Qxe8+ {[%clk 0:00:23]}  Rxe8 {[%clk 0:00:35]} 31. f3 {[%clk 0:00:22]}  Re2 {[%clk 0:00:32]} 32. Rd1 {[%clk 0:00:22]}  Kh7 {[%clk 0:00:27]} 33. Kh2 {[%clk 0:00:20]}  Kg6 {[%clk 0:00:27]} 34. Kg3 {[%clk 0:00:21]}  Kf5 {[%clk 0:00:28]} 35. h4 {[%clk 0:00:20]}  h5 {[%clk 0:00:24]} 36. Rd3 {[%clk 0:00:20]}  f6 {[%clk 0:00:24]} 37. Rd1 {[%clk 0:00:20]}  g5 {[%clk 0:00:23]} 38. Rd3 {[%clk 0:00:19]}  gxh4+ {[%clk 0:00:22]} 39. Kxh4 {[%clk 0:00:19]}  Rxg2 {[%clk 0:00:22]} 40. Kh3 {[%clk 0:00:17]}  Rg1 {[%clk 0:00:20]} 41. Kh2 {[%clk 0:00:17]}  Rg7 {[%clk 0:00:17]} 42. Kh3 {[%clk 0:00:17]}  Kf4 {[%clk 0:00:17]} 43. Kh2 {[%clk 0:00:17]}  Re7 {[%clk 0:00:17]} 44. Rd1 {[%clk 0:00:15]}  Re2+ {[%clk 0:00:15]} 45. Kh3 {[%clk 0:00:15]}  Kxf3 {[%clk 0:00:15]} 46. Rf1+ {[%clk 0:00:13]}  Rf2 {[%clk 0:00:15]} 47. Re1 {[%clk 0:00:12]}  Rd2 {[%clk 0:00:07]} 48. Rf1+ {[%clk 0:00:11]}  Ke4 {[%clk 0:00:08]} 49. Rxf6 {[%clk 0:00:11]}  Kxd4 {[%clk 0:00:07]} 50. Kg3 {[%clk 0:00:11]}  Kd3 {[%clk 0:00:06]} 51. Kf3 {[%clk 0:00:12]}  d4 {[%clk 0:00:06]} 52. Ra6 {[%clk 0:00:12]}  Rh2 {[%clk 0:00:04]} 53. Ra3+ {[%clk 0:00:12]}  Kc4 {[%clk 0:00:05]} 54. Ke4 {[%clk 0:00:11]}  Rh4+ {[%clk 0:00:04]} 55. Ke5 {[%clk 0:00:11]}  Rh3 {[%clk 0:00:03]} 56. Rxh3 {[%clk 0:00:11]}  d3 {[%clk 0:00:04]} 57. Kf4 {[%clk 0:00:10]}  d2 {[%clk 0:00:04]} 58. Rh1 {[%clk 0:00:09]}  Kd3 {[%clk 0:00:04]} 59. Kf3 {[%clk 0:00:09]}  h4 {[%clk 0:00:03]} 60. Kg4 {[%clk 0:00:07]}  Kc2 {[%clk 0:00:03]} 61. Kxh4 {[%clk 0:00:08]}  d1=Q {[%clk 0:00:03]} 62. Rxd1 {[%clk 0:00:08]}  Kxd1 {[%clk 0:00:04]} 1/2-1/2


[Site "https://www.chess.com"]

[Event "Titled Tuesday Blitz October 18 Late 2022"]
[White "Decuigniere, Tom"]
[Black "Prydun, Andriy"]
[WhiteFideId "26093820"]
[BlackFideId "14145898"]
[WhiteElo "2223"]
[BlackElo "2163"]
[Result "1-0"]
[Round "06"]
[TimeControl "180+1"]
[Date "2022.10.19"]
[WhiteClock "0:00:05"]
[BlackClock "0:00:03"]

1. c4 {[%clk 0:03:00]}  Nf6 {[%clk 0:03:00]} 2. Nc3 {[%clk 0:03:00]}  c5 {[%clk 0:02:59]} 3. g3 {[%clk 0:03:00]}  d6 {[%clk 0:02:59]} 4. Bg2 {[%clk 0:03:00]}  e5 {[%clk 0:02:58]} 5. e3 {[%clk 0:02:59]}  Be7 {[%clk 0:02:58]} 6. Nge2 {[%clk 0:03:00]}  O-O {[%clk 0:02:57]} 7. O-O {[%clk 0:03:00]}  Nfd7 {[%clk 0:02:53]} 8. d4 {[%clk 0:02:59]}  Nc6 {[%clk 0:02:49]} 9. Nd5 {[%clk 0:02:59]}  Re8 {[%clk 0:02:47]} 10. b3 {[%clk 0:02:46]}  Bf8 {[%clk 0:02:44]} 11. Bb2 {[%clk 0:02:46]}  f6 {[%clk 0:02:40]} 12. a3 {[%clk 0:02:46]}  Ne7 {[%clk 0:02:27]} 13. Nec3 {[%clk 0:02:43]}  Nb6 {[%clk 0:02:23]} 14. b4 {[%clk 0:02:08]}  Nxc4 {[%clk 0:02:14]} 15. Qb3 {[%clk 0:02:05]}  b5 {[%clk 0:01:43]} 16. Nxb5 {[%clk 0:02:05]}  Be6 {[%clk 0:01:40]} 17. Qxc4 {[%clk 0:02:00]}  Rb8 {[%clk 0:01:27]} 18. Nxe7+ {[%clk 0:01:57]}  Qxe7 {[%clk 0:01:28]} 19. d5 {[%clk 0:01:57]}  Bf7 {[%clk 0:01:15]} 20. Bc3 {[%clk 0:01:49]}  Rec8 {[%clk 0:01:15]} 21. Bd2 {[%clk 0:01:12]}  cxb4 {[%clk 0:01:12]} 22. Qe2 {[%clk 0:01:07]}  a6 {[%clk 0:01:10]} 23. Nxd6 {[%clk 0:00:59]}  Qxd6 {[%clk 0:01:10]} 24. Bxb4 {[%clk 0:01:00]}  Qb6 {[%clk 0:01:08]} 25. Rab1 {[%clk 0:00:57]}  Qb5 {[%clk 0:00:51]} 26. Qxb5 {[%clk 0:00:52]}  Rxb5 {[%clk 0:00:43]} 27. Bxf8 {[%clk 0:00:49]}  Kxf8 {[%clk 0:00:44]} 28. Rxb5 {[%clk 0:00:28]}  axb5 {[%clk 0:00:45]} 29. Rd1 {[%clk 0:00:22]}  Bh5 {[%clk 0:00:40]} 30. Rb1 {[%clk 0:00:17]}  Ke7 {[%clk 0:00:37]} 31. h3 {[%clk 0:00:15]}  Be2 {[%clk 0:00:36]} 32. Bf1 {[%clk 0:00:11]}  Bxf1 {[%clk 0:00:35]} 33. Kxf1 {[%clk 0:00:12]}  Rc5 {[%clk 0:00:35]} 34. e4 {[%clk 0:00:11]}  f5 {[%clk 0:00:31]} 35. f3 {[%clk 0:00:09]}  Rc3 {[%clk 0:00:30]} 36. Kf2 {[%clk 0:00:04]}  Rxa3 {[%clk 0:00:25]} 37. Rxb5 {[%clk 0:00:04]}  Ra2+ {[%clk 0:00:22]} 38. Ke3 {[%clk 0:00:04]}  Ra3+ {[%clk 0:00:22]} 39. Ke2 {[%clk 0:00:05]}  Ra2+ {[%clk 0:00:22]} 40. Ke1 {[%clk 0:00:05]}  Ra3 {[%clk 0:00:20]} 41. Ke2 {[%clk 0:00:05]}  Ra2+ {[%clk 0:00:20]} 42. Kd3 {[%clk 0:00:05]}  Ra3+ {[%clk 0:00:20]} 43. Kc4 {[%clk 0:00:05]}  Rxf3 {[%clk 0:00:21]} 44. Rb7+ {[%clk 0:00:05]}  Ke8 {[%clk 0:00:20]} 45. exf5 {[%clk 0:00:04]}  Rxg3 {[%clk 0:00:19]} 46. d6 {[%clk 0:00:03]}  Rxh3 {[%clk 0:00:14]} 47. Kd5 {[%clk 0:00:04]}  Rh6 {[%clk 0:00:06]} 48. Kxe5 {[%clk 0:00:03]}  Kf8 {[%clk 0:00:04]} 49. Rb8+ {[%clk 0:00:03]}  Kf7 {[%clk 0:00:04]} 50. d7 {[%clk 0:00:04]}  Rf6 {[%clk 0:00:01]} 51. d8=Q {[%clk 0:00:04]}  Rxf5+ {[%clk 0:00:01]} 52. Kxf5 {[%clk 0:00:04]}  g6+ {[%clk 0:00:02]} 53. Ke5 {[%clk 0:00:05]}  h5 {[%clk 0:00:03]} 54. Qf6# {[%clk 0:00:05]} 1-0


[Site "https://www.chess.com"]

[Event "Titled Tuesday Blitz October 18 Late 2022"]
[White "Dilanyan, Grigor"]
[Black "Storey, Charles H"]
[WhiteFideId "13303570"]
[BlackFideId "406686"]
[WhiteElo "2264"]
[BlackElo "2252"]
[Result "1-0"]
[Round "06"]
[TimeControl "180+1"]
[Date "2022.10.19"]
[WhiteClock "0:02:00"]
[BlackClock "0:00:59"]

1. d4 {[%clk 0:02:59]}  g6 {[%clk 0:02:58]} 2. Nf3 {[%clk 0:02:59]}  Bg7 {[%clk 0:02:59]} 3. g3 {[%clk 0:02:58]}  c5 {[%clk 0:02:58]} 4. dxc5 {[%clk 0:02:58]}  Na6 {[%clk 0:02:57]} 5. c6 {[%clk 0:02:57]}  bxc6 {[%clk 0:02:54]} 6. Bg2 {[%clk 0:02:57]}  Nc7 {[%clk 0:02:51]} 7. O-O {[%clk 0:02:58]}  Ne6 {[%clk 0:02:52]} 8. c4 {[%clk 0:02:58]}  Ba6 {[%clk 0:02:49]} 9. Qc2 {[%clk 0:02:57]}  Qb6 {[%clk 0:02:40]} 10. Rd1 {[%clk 0:02:46]}  Rb8 {[%clk 0:02:39]} 11. Nc3 {[%clk 0:02:44]}  Bxc4 {[%clk 0:02:29]} 12. Na4 {[%clk 0:02:44]}  Qa6 {[%clk 0:02:29]} 13. Ng5 {[%clk 0:02:22]}  Bxe2 {[%clk 0:02:18]} 14. Nxe6 {[%clk 0:02:22]}  fxe6 {[%clk 0:02:09]} 15. Rxd7 {[%clk 0:02:22]}  Bb5 {[%clk 0:01:59]} 16. Nc5 {[%clk 0:02:19]}  Qb6 {[%clk 0:01:46]} 17. Bf4 {[%clk 0:02:18]}  e5 {[%clk 0:01:37]} 18. Be3 {[%clk 0:02:16]}  Nf6 {[%clk 0:01:31]} 19. Ne6 {[%clk 0:02:01]}  Qa5 {[%clk 0:01:09]} 20. Rxa7 {[%clk 0:02:02]}  Qb4 {[%clk 0:00:59]} 21. Nxg7+ {[%clk 0:02:01]}  Kf7 {[%clk 0:00:59]} 22. Bc5 {[%clk 0:02:00]} 1-0


[Site "https://www.chess.com"]